bitfinex-derivatives/quotes_ETHF0:USTF0_20250803
["timestamp","ask_amount","ask_price","bid_price","bid_amount"]
[1754191202079,23.4118,3442.6,3442.5,2.89106]
[1754191202276,3.2078,3442.6,3442.5,2.89106]
[1754191202580,23.4088,3442.6,3442.5,2.89106]
[1754191203781,25.26328929,3442.6,3442.5,2.89106]
[1754191204376,5.06228929,3442.6,3442.5,2.89106]
[1754191204980,1.85448929,3442.7,3442.5,1.50676]
[1754191205181,1.85448929,3442.7,3442.6,2.2939]
[1754191205779,3.2078,3443.0,3442.7,1.49063]
[1754191205985,23.3958,3443.0,3442.9,2.87489]
[1754191206187,5.06228929,3443.0,3442.9,2.87489]
[1754191206886,5.13498929,3443.0,3442.9,2.2939]
[1754191208274,5.11768929,3443.0,3442.9,0.7366]
[1754191208474,5.13498929,3443.0,3442.9,2.2939]
[1754191210584,5.11768929,3443.0,3442.9,2.2939]
[1754191210785,5.13498929,3443.0,3442.9,2.2939]
[1754191213982,5.06228929,3443.0,3442.9,2.2939]
[1754191216091,5.08998929,3443.0,3442.9,2.2939]
[1754191216391,5.10728929,3443.0,3442.9,2.2939]
[1754191216594,5.13498929,3443.0,3442.9,1.5447]
[1754191216793,5.13498929,3443.0,3442.9,2.2939]
[1754191217993,1.92718929,3443.0,3442.9,2.2939]
[1754191218996,1.90988929,3443.0,3442.9,0.4503]
[1754191219194,1.92718929,3443.0,3442.9,0.9039]
[1754191219495,1.92718929,3443.0,3442.9,1.1902]
[1754191219695,1.92718929,3443.0,3442.9,1.6706]
[1754191220191,1.92718929,3443.0,3442.9,1.9983]
[1754191220396,1.92718929,3443.0,3442.9,2.2939]
[1754191221994,0.0173,3442.9,3442.6,0.4503]
[1754191222198,1.92718929,3442.7,3442.6,2.87494]
[1754191223298,1.90988929,3442.7,3442.6,2.87494]
[1754191223496,1.85448929,3442.7,3442.6,2.87494]
[1754191223698,5.08998929,3443.0,3442.9,2.87489]
[1754191223998,3.2078,3443.0,3442.9,2.87489]
[1754191224797,20.181,3443.2,3442.9,1.49059]
[1754191224999,20.181,3443.2,3443.1,2.87486]
[1754191225192,22.03548929,3443.2,3443.1,2.87486]
[1754191227493,22.06318929,3443.2,3443.1,2.87486]
[1754191227895,22.08048929,3443.2,3443.1,2.87486]
[1754191228091,22.10818929,3443.2,3443.1,2.87486]
[1754191232895,3.2078,3443.5,3443.4,2.81351]
[1754191233098,20.97787156,3443.5,3443.4,2.81351]
[1754191233606,20.082,3443.5,3443.4,2.81351]
[1754191233803,21.93838929,3443.5,3443.4,2.81351]
[1754191234101,21.94148929,3443.5,3443.4,2.81351]
[1754191239401,21.93648929,3443.5,3443.4,2.81351]
[1754191239613,5.06418929,3443.9,3443.8,2.81344]
[1754191239809,3.2128,3444.3,3444.2,1.44897]
[1754191240005,26.01821413,3444.3,3444.2,2.81337]
[1754191240304,26.02321413,3444.3,3444.2,2.81337]
[1754191240508,25.12828929,3444.3,3444.2,2.81337]
[1754191248606,25.12328929,3444.3,3444.2,2.81337]
[1754191251012,21.91548929,3444.3,3444.2,2.81337]
[1754191252419,21.92048929,3444.3,3444.2,2.33937]
[1754191252720,21.92168929,3444.3,3444.2,2.33937]
[1754191253221,21.92048929,3444.3,3444.2,2.81337]
[1754191253420,21.92048929,3444.3,3444.0,0.455]
[1754191253421,0.0038,3444.1,3444.0,0.455]
[1754191253715,20.0222,3444.1,3444.0,0.8904]
[1754191254019,20.021,3444.1,3444.0,1.3644]
[1754191254220,20.021,3444.1,3444.0,1.6514]
[1754191256115,20.021,3444.1,3444.0,0.8904]
[1754191256919,20.021,3444.1,3444.0,1.6514]
[1754191257116,20.021,3444.1,3444.0,2.2326]
[1754191257314,20.0198,3444.1,3444.0,2.2326]
[1754191257515,20.021,3444.1,3444.0,2.2326]
[1754191259734,3.2078,3444.5,3444.4,2.81334]
[1754191260027,23.2038,3444.5,3444.4,2.81334]
[1754191260230,3.2078,3444.5,3444.4,2.81334]
[1754191260428,5.41727929,3445.0,3444.9,2.2326]
[1754191260633,26.30876669,3445.0,3444.9,2.2326]
[1754191262928,25.41527929,3445.0,3444.9,2.2326]
[1754191263225,0.35499,3445.0,3444.9,2.2326]
[1754191263431,20.35399,3445.0,3444.9,2.2326]
[1754191268846,0.35499,3445.0,3444.9,2.2326]
[1754191273348,3.2078,3445.6,3445.0,0.5858]
[1754191273349,1.85448929,3445.4,3445.0,0.5858]
[1754191273547,19.957,3445.5,3445.4,0.4211]
[1754191273852,21.81148929,3445.5,3445.4,2.1685]
[1754191275751,21.81148929,3445.5,3445.4,1.7054]
[1754191275953,21.81148929,3445.5,3445.4,2.1685]
[1754191276253,21.81148929,3445.5,3445.4,0.4211]
[1754191276451,21.81148929,3445.5,3445.4,0.8311]
[1754191278252,21.81148929,3445.5,3445.4,1.5748]
[1754191280249,21.81148929,3445.5,3445.4,2.1685]
[1754191283963,19.957,3445.5,3445.4,2.1685]
[1754191285855,41.822,3446.1,3445.5,2.1685]
[1754191285856,3.2078,3446.0,3445.5,2.1685]
[1754191286061,5.06228929,3446.0,3445.9,2.74899]
[1754191286260,24.98328929,3446.0,3445.9,2.74899]
[1754191287364,23.1288,3446.0,3445.9,2.74899]
[1754191287560,19.921,3446.0,3445.9,2.74899]
[1754191288466,3.2078,3446.4,3446.3,2.74892]
[1754191288775,23.1238,3446.4,3446.3,2.74892]
[1754191289256,3.2078,3446.8,3446.7,0.8743]
[1754191289458,4.10004069,3446.8,3446.7,2.74885]
[1754191289653,2.74669698,3446.8,3446.7,0.58035]
[1754191289856,5.95449698,3446.8,3446.7,0.41]
[1754191290365,5.95449698,3446.8,3446.7,0.8311]
[1754191290565,25.89249698,3446.8,3446.7,1.5748]
[1754191290871,25.89049698,3446.8,3446.7,2.1685]
[1754191291061,24.99828929,3446.8,3446.7,2.1685]
[1754191291560,1.85448929,3446.8,3446.7,2.1685]
[1754191291971,1.93448929,3447.1,3447.0,0.8964]
[1754191292168,21.86548929,3447.1,3447.0,2.2253]
[1754191292466,20.012,3447.1,3447.0,2.2253]
[1754191292961,20.012,3447.1,3447.0,1.7682]
[1754191293365,20.012,3447.1,3447.0,2.2253]
[1754191294466,20.009,3447.1,3447.0,2.2253]
[1754191295165,0.08,3447.1,3447.0,2.2253]
[1754191295366,20.016,3447.1,3447.0,2.2253]
[1754191298759,20.016,3447.1,3447.0,0.4392]
[1754191298960,20.016,3447.1,3447.0,1.6029]
[1754191299164,20.016,3447.1,3447.0,2.2253]
[1754191301766,19.997,3447.1,3447.0,2.2253]
[1754191304870,19.991,3447.1,3447.0,2.2253]
[1754191309468,0.05,3447.6,3447.2,0.8964]
[1754191309673,0.05,3447.6,3447.5,2.2253]
[1754191313781,4.2078,3448.0,3447.3,3.78805]
[1754191313782,4.2078,3448.0,3447.9,2.80545]
[1754191315369,0.33043,3448.0,3447.9,2.80545]
[1754191315682,3.2078,3448.4,3448.3,2.80538]
[1754191315978,2.49299,3448.4,3448.3,2.80538]
[1754191316179,20.5228,3448.9,3448.8,2.2253]
[1754191316376,0.8897743,3448.9,3448.8,2.2253]
[1754191316769,0.00492921,3449.0,3448.9,1.18178]
[1754191316980,9.21e-06,3449.0,3448.9,2.80528]
[1754191318272,3.2078,3449.2,3448.9,2.80528]
[1754191318474,3.8386,3449.6,3449.5,1.4404]
[1754191318677,6.5818621,3449.6,3449.5,1.4404]
[1754191318878,6.5818621,3449.6,3449.5,2.80518]
[1754191319077,4.72737281,3449.6,3449.5,2.80518]
[1754191319379,0.6308,3449.6,3449.5,2.80518]
[1754191319780,2.48528929,3449.6,3449.5,2.80518]
[1754191320182,2.48528929,3449.6,3449.5,0.8718]
[1754191320581,22.37628929,3449.7,3449.6,2.80516]
[1754191320780,0.6308,3449.3,3449.2,0.4392]
[1754191321080,0.3016,3449.0,3448.9,0.4392]
[1754191321283,2.48528929,3449.0,3448.9,0.4392]
[1754191321678,2.49988929,3449.0,3448.9,0.4392]
[1754191322081,2.16508929,3449.0,3448.8,0.4551]
[1754191322281,2.16508929,3449.0,3448.0,3.2078]
[1754191322282,0.6439,3448.3,3448.2,1.9892]
[1754191322584,0.3348,3448.2,3448.0,1.03522]
[1754191322887,0.6467,3448.1,3448.0,1.03522]
[1754191323092,0.6439,3448.1,3448.0,2.38602]
[1754191323279,0.6439,3448.1,3448.0,2.87892]
[1754191324285,20.5394,3448.2,3448.1,2.2988]
[1754191324486,0.6439,3448.2,3448.1,2.2988]
[1754191324685,20.2119,3448.6,3448.5,0.9078]
[1754191324981,20.5439,3448.6,3448.5,2.2988]
[1754191325382,3.8517,3449.1,3449.0,2.38586]
[1754191325587,24.66749674,3449.1,3449.0,2.87876]
[1754191325780,4.09559674,3449.1,3449.0,2.87876]
[1754191326085,3.8444,3449.1,3449.0,2.87876]
[1754191326288,23.1448,3449.1,3449.0,2.87876]
[1754191326488,3.2078,3449.1,3449.0,2.87876]
[1754191326688,0.3292,3449.4,3449.3,0.57991]
[1754191326889,1.5286448,3449.4,3449.3,2.87871]
[1754191327187,1.5241448,3449.4,3449.3,2.87871]
[1754191327384,0.8875448,3449.4,3449.3,2.87871]
[1754191327681,1.12119979,3450.0,3449.6,0.8981]
[1754191327682,22.11668929,3449.9,3449.6,0.8981]
[1754191327888,22.43138929,3449.9,3449.8,2.2988]
[1754191328094,23.31871115,3449.9,3449.8,2.87863]
[1754191328285,0.88732186,3449.9,3449.8,2.87863]
[1754191328493,0.6321,3449.9,3449.8,2.87863]
[1754191328789,0.6366,3449.9,3449.8,2.87863]
[1754191328990,0.6321,3449.9,3449.8,2.87863]
[1754191329394,0.08,3450.0,3449.9,2.2988]
[1754191329682,0.08,3450.0,3449.8,0.57983]
[1754191329883,1e-05,3450.0,3449.9,2.2988]
[1754191330091,3.2078,3450.5,3450.4,2.87853]
[1754191330092,2.61302,3450.5,3450.4,2.87853]
[1754191330286,0.00725903,3450.7,3450.4,6.08633]
[1754191330492,2.16189832,3450.7,3450.6,2.8785]
[1754191330787,9.03e-06,3450.7,3450.6,1.4875]
[1754191332795,0.64390903,3450.7,3450.6,1.4875]
[1754191332985,0.64390903,3450.7,3450.6,2.3856]
[1754191333288,0.64390903,3450.7,3450.6,2.8785]
[1754191333493,0.64390903,3450.7,3450.6,2.2988]
[1754191337093,0.64390903,3450.7,3450.1,1.47787]
[1754191337294,0.3292,3450.5,3450.2,1.3629]
[1754191337589,0.3119,3450.2,3450.1,0.4551]
[1754191337794,0.6439,3450.2,3450.1,0.4551]
[1754191338191,0.6439,3450.2,3450.1,1.8059]
[1754191338390,0.6439,3450.2,3450.1,2.2988]
[1754191338687,0.6439,3450.2,3450.1,1.8059]
[1754191338892,0.6439,3450.2,3450.1,1.4963]
[1754191339688,0.6439,3450.2,3450.1,0.4551]
[1754191339893,5.70898929,3450.2,3450.1,0.4551]
[1754191340289,5.70618929,3450.2,3450.1,0.4551]
[1754191340595,5.70618929,3450.2,3450.1,0.8981]
[1754191340788,3.8517,3450.2,3450.1,0.8981]
[1754191340985,3.8517,3450.2,3450.1,1.4963]
[1754191341184,0.3292,3450.5,3450.1,1.3629]
[1754191341389,3.536,3450.6,3450.5,2.2988]
[1754191341690,9.03e-06,3450.7,3450.6,2.2988]
[1754191341895,9.03e-06,3450.7,3450.6,0.9078]
[1754191342499,0.8817233,3450.7,3450.6,2.2988]
[1754191343394,9.03e-06,3450.7,3450.6,0.9078]
[1754191351499,0.04050811,3451.0,3450.7,0.57968]
[1754191351695,0.05,3451.2,3451.1,2.2991]
[1754191352899,0.05,3451.2,3451.1,1.4905]
[1754191353204,1.6681,3451.1,3451.0,2.39433]
[1754191353505,1.1783,3451.1,3451.0,2.87873]
[1754191354006,1.2413,3451.1,3451.0,2.87873]
[1754191354598,0.7914,3451.1,3451.0,1.8147]
[1754191354799,0.05,3451.2,3450.9,1.47834]
[1754191354800,1.6681,3451.0,3450.9,1.47834]
[1754191355007,0.7284,3451.0,3450.8,3.78745]
[1754191355303,1.6681,3450.9,3450.8,4.68615]
[1754191356000,1.6681,3450.9,3450.8,3.2078]
[1754191356200,1.6681,3450.9,3450.5,0.8987]
[1754191356201,2.55214676,3450.9,3450.4,3.2078]
[1754191356401,1.6681,3450.5,3450.4,3.2078]
[1754191357001,2.55220473,3450.5,3450.4,3.2078]
[1754191358514,2.55220473,3450.5,3450.4,4.4115]
[1754191360310,2.55220473,3450.5,3450.4,3.6623]
[1754191360905,2.55220473,3450.5,3450.4,3.2078]
[1754191361307,0.4898,3450.4,3449.7,0.4545]
[1754191361513,1.0775,3449.8,3449.7,2.87894]
[1754191361708,2.06240473,3449.8,3449.7,2.87894]
[1754191361901,2.12540473,3449.8,3449.7,2.87894]
[1754191362102,2.55220473,3449.8,3449.7,2.2991]
[1754191362801,2.55220473,3449.8,3449.6,3.78766]
[1754191363000,1.6681,3449.7,3449.6,5.27816]
[1754191363200,1.6681,3449.7,3449.6,4.6983]
[1754191363611,1.6681,3449.7,3449.6,4.4115]
[1754191363807,1.6681,3449.7,3449.6,5.5069]
[1754191365010,1.6681,3449.7,3449.6,3.2078]
[1754191365602,1.6681,3449.7,3449.6,4.6983]
[1754191366003,1.2413,3449.7,3449.6,3.2078]
[1754191366203,1.6681,3449.7,3449.6,3.2078]
[1754191366803,2.54998609,3449.7,3449.2,0.4442]
[1754191367112,1.6681,3449.4,3449.1,3.6922]
[1754191367416,0.6276,3449.3,3449.2,2.2991]
[1754191367608,1.2413,3449.3,3449.2,2.2991]
[1754191368118,1.2413,3449.3,3449.2,1.4905]
[1754191368119,1.6681,3449.3,3449.2,1.4905]
[1754191368911,1.6681,3449.3,3449.2,0.8987]
[1754191369115,1.6681,3449.3,3449.1,3.78773]
[1754191369317,1.6681,3449.3,3449.2,1.8147]
[1754191370508,1.6681,3449.3,3449.2,2.2991]
[1754191371309,0.5129,3449.8,3449.3,1.3831]
[1754191371515,1.6681,3449.8,3449.7,2.2991]
[1754191371711,1.6681,3449.8,3449.7,1.4905]
[1754191372010,1.6681,3449.8,3449.7,0.8987]
[1754191372212,0.9397,3449.7,3449.4,0.4844]
[1754191372413,1.2413,3449.5,3449.2,0.57992]
[1754191372606,0.7284,3449.3,3449.2,1.49592]
[1754191372807,1.6681,3449.3,3449.2,1.49592]
[1754191373111,1.6681,3449.3,3449.2,2.87902]
[1754191373507,0.6276,3449.4,3449.3,2.2991]
[1754191373705,1.0775,3449.4,3449.3,2.2991]
[1754191373913,1.1783,3449.4,3449.3,2.2991]
[1754191374115,1.6681,3449.4,3449.3,1.8147]
[1754191375014,1.6681,3449.4,3449.3,2.2991]
[1754191375211,1.1783,3449.4,3449.3,2.2991]
[1754191375414,1.1405,3449.8,3449.7,0.5918]
[1754191375711,1.6681,3449.8,3449.7,2.2991]
[1754191377014,4.2853,3450.1,3450.0,0.916]
[1754191377316,1.0775,3450.1,3450.0,2.2991]
[1754191377708,1.2413,3450.1,3450.0,2.2991]
[1754191377908,1.6681,3450.1,3450.0,2.2991]
[1754191378103,1.6681,3450.1,3450.0,1.8147]
[1754191378811,0.7284,3449.6,3449.5,4.1238]
[1754191379004,1.2413,3449.6,3449.5,4.6082]
[1754191379207,1.6681,3449.6,3449.5,4.6082]
[1754191379417,1.6681,3449.6,3449.5,5.5069]
[1754191379716,1.5043,3449.5,3449.4,0.4545]
[1754191379919,1.6681,3449.5,3449.4,0.8987]
[1754191380716,1.6681,3449.5,3449.4,1.1855]
[1754191380917,1.6681,3449.5,3449.4,1.4905]
[1754191381612,1.1783,3449.5,3449.2,0.57992]
[1754191381810,1.0672,3449.1,3449.0,2.85706]
[1754191382016,0.6137,3449.3,3449.2,1.18552]
[1754191382211,1.0672,3449.3,3449.2,1.48922]
[1754191382415,1.6725,3449.3,3449.2,0.3037]
[1754191382717,1.2247,3448.8,3448.7,2.2771]
[1754191383121,0.7712,3448.3,3448.2,4.1171]
[1754191383313,3.2078,3449.4,3448.2,5.05734267]
[1754191383518,0.5084,3448.8,3448.2,3.2078]
[1754191383725,1.6725,3448.3,3448.2,4.1171]
[1754191384024,1.6725,3448.3,3448.2,4.5747]
[1754191384325,1.1641,3448.1,3447.9,1.04409867]
[1754191384623,1.6725,3448.0,3447.9,2.86359867]
[1754191385415,3.8215,3448.6,3448.5,0.9093]
[1754191385617,4.275,3448.6,3448.5,2.2771]
[1754191386011,4.8803,3448.6,3448.5,1.8195]
[1754191386212,4.8803,3448.6,3448.5,1.5076]
[1754191387021,4.4325,3448.6,3448.5,2.2771]
[1754191387220,4.3719,3448.6,3448.5,2.2771]
[1754191387719,0.6137,3448.0,3447.9,2.53354867]
[1754191388023,0.6137,3448.0,3447.9,3.90134867]
[1754191388216,0.3251,3448.0,3447.9,3.90134867]
[1754191388415,1.1641,3448.0,3447.9,3.90134867]
[1754191388622,1.0672,3448.0,3447.9,3.90134867]
[1754191388825,1.1641,3448.3,3448.2,1.4894]
[1754191389121,1.1641,3448.3,3448.2,2.8572]
[1754191389323,4.275,3448.6,3448.5,2.2771]
[1754191389620,4.8803,3448.6,3448.5,2.2771]
[1754191390322,0.7106,3448.4,3448.3,1.5076]
[1754191390520,0.0969,3448.2,3448.1,0.4474]
[1754191390720,1.6725,3448.2,3448.1,0.9102]
[1754191390922,1.6725,3448.2,3448.1,1.8195]
[1754191391114,1.2247,3448.2,3448.1,2.2771]
[1754191391315,0.4535,3448.5,3448.2,0.5801]
[1754191391522,3.6613,3448.6,3448.5,2.2771]
[1754191391723,4.275,3448.6,3448.5,2.2771]
[1754191393220,4.275,3448.6,3448.4,0.58005]
[1754191393221,0.7106,3448.4,3448.2,0.5801]
[1754191393421,1.6725,3448.3,3448.2,1.5076]
[1754191394127,1.6725,3448.3,3448.2,1.8195]
[1754191394625,3.2078,3448.6,3448.2,0.5801]
[1754191394626,0.4535,3448.4,3448.2,0.5801]
[1754191394818,3.2078,3448.6,3448.2,0.5801]
[1754191394819,1.2247,3448.3,3448.2,2.8572]
[1754191395025,1.1641,3448.3,3448.2,2.8572]
[1754191395427,1.0672,3448.3,3448.2,2.8572]
[1754191395726,0.6137,3448.5,3448.4,1.48936]
[1754191396116,1.0672,3448.5,3448.4,2.85716]
[1754191397029,1.6725,3448.5,3448.4,1.8195]
[1754191397327,1.6725,3448.3,3448.2,0.9102]
[1754191397527,1.6725,3448.0,3447.9,2.55169867]
[1754191397722,1.6725,3448.0,3447.9,1.04409867]
[1754191398135,1.6725,3448.0,3447.9,2.55169867]
[1754191398540,1.6725,3448.0,3447.9,2.86359867]
[1754191398742,1.1641,3448.0,3447.9,3.32119867]
[1754191398940,1.0672,3448.0,3447.9,3.32119867]
[1754191399238,21.1022,3448.3,3448.2,1.48939]
[1754191399542,21.1022,3448.3,3448.2,0.9093]
[1754191399838,21.7075,3448.3,3448.2,1.8195]
[1754191400233,21.2597,3448.3,3448.2,2.2771]
[1754191401536,21.1991,3448.3,3448.2,2.2771]
[1754191402041,21.7075,3448.3,3448.2,0.7511]
[1754191402243,22.58899261,3448.3,3448.2,1.5076]
[1754191402538,21.62709261,3448.3,3448.0,0.9102]
[1754191402743,1.6725,3448.0,3447.9,1.04409867]
[1754191402941,1.6725,3448.0,3447.9,2.55169867]
[1754191403141,1.6725,3448.0,3447.9,2.86359867]
[1754191403445,1.1641,3448.0,3447.9,3.32119867]
[1754191403744,1.2247,3448.0,3447.9,2.55169867]
[1754191403945,1.6725,3448.0,3447.9,2.55169867]
[1754191404342,1.6725,3448.0,3447.9,1.78519867]
[1754191404545,1.6725,3448.0,3447.9,1.49149867]
[1754191405042,1.6725,3448.0,3447.9,2.55169867]
[1754191405546,1.6725,3448.0,3447.9,2.86359867]
[1754191406444,1.6725,3448.0,3447.9,3.32119867]
[1754191407843,2.55479463,3448.0,3447.9,3.32119867]
[1754191408243,0.88229463,3448.0,3447.9,3.32119867]
[1754191410247,3.2078,3448.2,3448.1,2.2771]
[1754191410445,4.09142882,3448.2,3448.1,2.2771]
[1754191412044,4.41652882,3448.2,3448.1,2.2771]
[1754191412845,4.09142882,3448.2,3448.1,2.2771]
[1754191413050,0.88362882,3448.2,3448.1,2.2771]
[1754191413740,20.035,3448.3,3448.2,1.4991]
[1754191413741,20.3599,3448.3,3448.2,1.4991]
[1754191413942,21.71290209,3448.3,3448.2,2.8369]
[1754191414144,21.1131,3448.3,3448.2,2.8369]
[1754191414557,21.6818,3448.3,3448.2,2.8369]
[1754191415853,21.1842,3448.3,3448.2,2.8369]
[1754191416151,21.1131,3448.3,3448.2,2.8369]
[1754191417650,21.1842,3448.3,3448.2,2.8369]
[1754191417955,21.2286,3448.3,3448.2,2.8369]
[1754191418555,21.6818,3448.3,3448.2,2.8369]
[1754191418859,21.2286,3448.3,3448.2,2.8369]
[1754191419456,21.1842,3448.3,3448.2,2.8369]
[1754191419854,22.06923167,3448.3,3448.2,2.8369]
[1754191420055,21.99813167,3448.3,3448.2,2.8369]
[1754191421162,22.06923167,3448.3,3448.2,2.8369]
[1754191421547,22.11363167,3448.3,3448.2,0.5801]
[1754191421755,22.56683167,3448.3,3448.2,2.0612]
[1754191422861,22.56683167,3448.3,3448.2,0.5801]
[1754191423262,22.56683167,3448.3,3448.2,1.4575]
[1754191423559,22.56683167,3448.3,3448.2,2.0612]
[1754191424154,22.56683167,3448.3,3448.2,0.8774]
[1754191424763,24.41800489,3448.3,3448.2,0.8774]
[1754191425062,1.6468,3448.2,3448.1,1.49911]
[1754191425361,2.53185041,3448.2,3448.1,1.49911]
[1754191425563,2.53185041,3448.2,3448.1,2.83691]
[1754191426764,0.88505041,3448.2,3448.1,2.83691]
[1754191426963,2.07865041,3448.2,3448.1,2.83691]
[1754191427455,2.53185041,3448.2,3448.1,2.83691]
[1754191428361,2.07865041,3448.2,3448.1,2.37651]
[1754191428562,2.53185041,3448.2,3448.1,2.37651]
[1754191428768,2.53185041,3448.2,3448.1,2.83691]
[1754191429760,2.07865041,3448.2,3448.1,2.83691]
[1754191429967,2.03425041,3448.2,3448.1,2.83691]
[1754191430267,20.035,3448.3,3448.1,2.83691]
[1754191430456,20.035,3448.3,3448.2,1.3378]
[1754191430660,20.92007092,3448.3,3448.2,2.2568]
[1754191431064,21.38797092,3448.3,3448.1,0.58011]
[1754191431366,21.6818,3448.3,3448.2,2.2568]
[1754191431567,22.11367871,3448.3,3448.2,1.3794]
[1754191431763,22.11367871,3448.3,3448.2,2.2568]
[1754191431961,22.56687871,3448.3,3448.2,2.2568]
[1754191433466,21.60137871,3448.3,3448.1,1.01841]
[1754191433663,2.03427871,3448.2,3448.1,1.45751]
[1754191433870,2.03427871,3448.2,3448.1,2.06121]
[1754191434171,2.53187871,3448.2,3448.1,2.37651]
[1754191434367,2.53187871,3448.2,3448.1,2.83691]
[1754191434969,1.56637871,3448.2,3448.0,0.58013]
[1754191435265,21.5868,3448.1,3448.0,2.83693]
[1754191435670,21.1336,3448.1,3448.0,2.83693]
[1754191436167,21.1336,3448.1,3448.0,2.37653]
[1754191436371,21.5868,3448.1,3448.0,1.4811]
[1754191436571,22.47218551,3448.1,3448.0,1.1785]
[1754191436872,1.6468,3448.0,3447.9,1.92149867]
[1754191437169,2.53218551,3448.0,3447.9,1.04409867]
[1754191440472,3.5733853,3448.0,3447.9,1.04409867]
[1754191440865,3.57338107,3448.0,3447.9,1.04409867]
[1754191441571,3.57338107,3448.0,3447.9,1.92669867]
[1754191441877,2.53218128,3448.0,3447.9,1.95249867]
[1754191442076,2.53218128,3448.0,3447.9,3.31799867]
[1754191444470,2.53218128,3448.0,3447.9,2.83509867]
[1754191444673,2.53218128,3448.0,3447.9,1.92669867]
[1754191447177,0.88538128,3448.0,3447.9,3.30119867]
[1754191447378,19.931,3448.0,3447.9,3.30119867]
[1754191447881,19.4769,3448.0,3447.9,3.30119867]
[1754191451279,2.7559,3448.6,3448.5,2.2571]
[1754191451480,23.55969248,3448.6,3448.5,2.2571]
[1754191451781,22.60679248,3448.6,3448.5,2.2571]
[1754191453179,21.70599248,3448.6,3448.5,2.2571]
[1754191454479,22.17299248,3448.6,3448.5,2.2571]
[1754191455677,22.60679248,3448.6,3448.5,2.2571]
[1754191455877,1.338,3448.5,3448.3,0.4384]
[1754191456182,0.9022,3448.0,3447.9,1.48249867]
[1754191456374,27.20817322,3448.0,3447.9,1.48249867]
[1754191456577,28.09207405,3448.0,3447.9,1.48249867]
[1754191456777,28.09207405,3448.0,3447.9,2.51979867]
[1754191456978,24.00070083,3448.0,3447.9,3.30119867]
[1754191457284,25.80370083,3448.0,3447.9,3.30119867]
[1754191458885,26.24090083,3448.0,3447.9,1.04409867]
[1754191459778,26.24090083,3448.0,3447.9,1.48249867]
[1754191460283,26.24090083,3448.0,3447.9,3.30119867]
[1754191460484,26.24090083,3448.0,3447.9,2.07179867]
[1754191460672,26.24090083,3448.0,3447.9,1.48249867]
[1754191461280,26.24090083,3448.0,3447.9,1.04409867]
[1754191462488,26.24090083,3448.0,3447.9,1.48249867]
[1754191467786,26.24090083,3448.0,3447.9,1.92669867]
[1754191468593,26.24090083,3448.0,3447.9,1.04409867]
[1754191473592,4.86090083,3448.0,3447.9,2.80049867]
[1754191473786,25.04540083,3448.0,3447.9,3.26109867]
[1754191474098,24.29820083,3448.0,3447.9,3.26109867]
[1754191474292,23.97870083,3448.0,3447.9,3.26109867]
[1754191476098,26.19880083,3448.0,3447.9,2.80049867]
[1754191476290,26.19880083,3448.0,3447.9,3.26109867]
[1754191476491,25.76270083,3448.0,3447.9,3.26109867]
[1754191477598,25.31840083,3448.0,3447.9,3.26109867]
[1754191479902,25.76270083,3448.0,3447.9,3.26109867]
[1754191481504,25.76270083,3448.0,3447.9,1.04409867]
[1754191481701,26.19880083,3448.0,3447.9,1.04409867]
[1754191481903,26.19880083,3448.0,3447.9,1.77349867]
[1754191482094,26.19880083,3448.0,3447.9,2.20969867]
[1754191482996,26.19880083,3448.0,3447.9,1.04409867]
[1754191483193,26.19880083,3448.0,3446.3,1.73759359]
[1754191483194,0.3164,3447.6,3447.5,0.4353]
[1754191483406,22.55490083,3447.6,3447.5,2.79725]
[1754191487501,22.11060083,3447.6,3447.5,2.79725]
[1754191489799,22.11060083,3447.6,3447.5,2.217]
[1754191490001,20.77090083,3447.6,3447.5,2.217]
[1754191491100,1.04119979,3448.1,3447.5,5.4248]
[1754191491299,0.894,3448.3,3448.2,0.58014]
[1754191491509,21.3939,3448.3,3448.2,2.79714]
[1754191491914,20.2024,3448.3,3448.2,2.79714]
[1754191493610,20.6521,3448.3,3448.2,2.79714]
[1754191495204,21.67,3448.3,3448.2,2.79714]
[1754191495715,2.2201,3448.0,3447.9,2.36098]
[1754191495905,23.95527322,3448.0,3447.9,2.36098]
[1754191496105,23.95527322,3448.0,3447.9,2.79718]
[1754191496305,24.90907322,3448.0,3447.9,2.79718]
[1754191497516,24.90907322,3448.0,3447.9,2.217]
[1754191497910,28.11687322,3448.0,3447.9,0.7294]
[1754191498110,0.89,3447.6,3447.5,4.67295]
[1754191498308,21.668,3447.6,3447.5,4.67295]
[1754191498516,21.2237,3447.6,3447.5,4.67295]
[1754191498814,21.2237,3447.6,3447.5,6.00505]
[1754191499209,21.668,3447.6,3447.5,6.00505]
[1754191500810,22.1041,3447.6,3447.5,6.00505]
[1754191501318,22.1041,3447.6,3447.5,2.79725]
[1754191501714,21.6812,3447.6,3447.5,2.79725]
[1754191503120,22.56296843,3447.6,3447.5,2.79725]
[1754191505417,2.23396843,3447.6,3447.5,2.79725]
[1754191505622,20.2004,3447.6,3447.5,2.79725]
[1754191508136,19.884,3447.6,3447.5,2.79725]
[1754191508527,19.884,3447.6,3447.5,1.46515]
[1754191509129,19.884,3447.6,3447.5,2.78965]
[1754191510236,0.9538,3448.0,3447.9,2.79869]
[1754191510530,21.71779281,3448.0,3447.9,2.79869]
[1754191510835,22.50069281,3448.0,3447.9,2.79869]
[1754191511233,22.77409281,3448.0,3447.9,2.79869]
[1754191511435,23.49699281,3448.0,3447.9,2.79869]
[1754191511927,23.21909281,3448.0,3447.9,2.79869]
[1754191512130,22.616,3448.0,3447.9,2.79869]
[1754191512329,21.1575,3448.0,3447.9,2.79869]
[1754191512533,22.616,3448.0,3447.9,2.79869]
[1754191512732,22.616,3448.0,3447.6,0.4262]
[1754191512733,1.3388,3447.9,3447.6,0.4262]
[1754191512936,2.2108,3447.7,3447.6,2.37434]
[1754191513234,1.7792,3447.7,3447.6,2.37434]